[Event "*** Titled Tuesday Blitz"]
[Site "Chess.com"]
[Date "2021.03.02"]
[Round "11"]
[White "Mr_Sinigami"]
[Black "ChainsOfFantasia"]
[Result "0-1"]
[WhiteElo "2611"]
[BlackElo "2479"]
[TimeControl "180+1"]
[EndTime "12:09:32 PST"]
[Termination "ChainsOfFantasia won on time"]

1. d4 {[%clk 0:03:00.9]} 1... Nf6 {[%clk 0:02:59.5]} 2. Nf3 {[%clk 0:03:00.7]}
2... d5 {[%clk 0:02:56.6]} 3. Bf4 {[%clk 0:03:01.1]} 3... c5 {[%clk 0:02:53.4]}
4. e3 {[%clk 0:03:01.3]} 4... Nc6 {[%clk 0:02:52.8]} 5. Nbd2 {[%clk 0:03:00.6]}
5... cxd4 {[%clk 0:02:52.7]} 6. exd4 {[%clk 0:03:00.5]} 6... Bf5 {[%clk
0:02:53.1]} 7. c3 {[%clk 0:02:59.9]} 7... e6 {[%clk 0:02:53.2]} 8. Be2 {[%clk
0:02:58.6]} 8... Bd6 {[%clk 0:02:52.6]} 9. Bg3 {[%clk 0:02:58.9]} 9... Bxg3
{[%clk 0:02:49.8]} 10. hxg3 {[%clk 0:02:58.9]} 10... O-O {[%clk 0:02:50.2]} 11.
O-O {[%clk 0:02:58.7]} 11... h6 {[%clk 0:02:44.5]} 12. b4 {[%clk 0:02:51.1]}
12... Rc8 {[%clk 0:02:32.6]} 13. a4 {[%clk 0:02:48.7]} 13... Nb8 {[%clk
0:02:28.9]} 14. Qb3 {[%clk 0:02:47.5]} 14... Nbd7 {[%clk 0:02:27.3]} 15. a5
{[%clk 0:02:44.1]} 15... Ne4 {[%clk 0:01:57.8]} 16. Rfc1 {[%clk 0:02:41.4]}
16... Bg4 {[%clk 0:01:47.9]} 17. Qb2 {[%clk 0:02:41]} 17... Nxd2 {[%clk
0:01:43.1]} 18. Qxd2 {[%clk 0:02:40.6]} 18... Bxf3 {[%clk 0:01:40.7]} 19. gxf3
{[%clk 0:02:38.3]} 19... Qe7 {[%clk 0:01:36.5]} 20. f4 {[%clk 0:02:35]} 20...
Rc7 {[%clk 0:01:36.2]} 21. Bd3 {[%clk 0:02:33.2]} 21... Rfc8 {[%clk 0:01:36.3]}
22. Kg2 {[%clk 0:02:32.3]} 22... Nf6 {[%clk 0:01:24.7]} 23. Qe1 {[%clk
0:02:30.2]} 23... Ne8 {[%clk 0:01:24.1]} 24. Rc2 {[%clk 0:02:18.9]} 24... Nd6
{[%clk 0:01:23.8]} 25. Rac1 {[%clk 0:02:18.7]} 25... Qf6 {[%clk 0:01:20.3]} 26.
f3 {[%clk 0:02:16.7]} 26... Nc4 {[%clk 0:01:14.3]} 27. Bxc4 {[%clk 0:02:01.4]}
27... Rxc4 {[%clk 0:01:15.2]} 28. Qe3 {[%clk 0:02:00.8]} 28... Qf5 {[%clk
0:01:07.7]} 29. g4 {[%clk 0:01:58.8]} 29... Qg6 {[%clk 0:01:05.9]} 30. Re2
{[%clk 0:01:52.7]} 30... Qf6 {[%clk 0:01:01.3]} 31. Kg3 {[%clk 0:01:43.6]} 31...
R8c7 {[%clk 0:00:57.6]} 32. Qd2 {[%clk 0:01:31.5]} 32... Qd8 {[%clk 0:00:57]}
33. Re3 {[%clk 0:01:29]} 33... Qc8 {[%clk 0:00:56.1]} 34. f5 {[%clk 0:01:24.1]}
34... exf5 {[%clk 0:00:53.8]} 35. Rce1 {[%clk 0:01:23.9]} 35... Qd7 {[%clk
0:00:49.8]} 36. Re8+ {[%clk 0:01:20.7]} 36... Kh7 {[%clk 0:00:49.6]} 37. Qf4
{[%clk 0:01:20.9]} 37... fxg4 {[%clk 0:00:45.4]} 38. R1e7 {[%clk 0:00:43.3]}
38... Qxe7 {[%clk 0:00:42.2]} 39. Rxe7 {[%clk 0:00:43.3]} 39... Rxe7 {[%clk
0:00:43.1]} 40. Kxg4 {[%clk 0:00:40.7]} 40... g6 {[%clk 0:00:34.7]} 41. Qd6
{[%clk 0:00:38.9]} 41... Rec7 {[%clk 0:00:29.3]} 42. Qxd5 {[%clk 0:00:38.9]}
42... Rxc3 {[%clk 0:00:29.3]} 43. Qe5 {[%clk 0:00:36.3]} 43... Rd7 {[%clk
0:00:26.1]} 0-1

[Event "*** Titled Tuesday Blitz"]
[Site "Chess.com"]
[Date "2021.03.02"]
[Round "11"]
[White "Jungle_Jaguar"]
[Black "JulianProleiko"]
[Result "1-0"]
[WhiteElo "2607"]
[BlackElo "2444"]
[TimeControl "180+1"]
[EndTime "12:09:36 PST"]
[Termination "Jungle_Jaguar won on time"]

1. e4 {[%clk 0:03:00.9]} 1... c5 {[%clk 0:02:59]} 2. Nf3 {[%clk 0:03:01.1]} 2...
d6 {[%clk 0:02:59.3]} 3. d4 {[%clk 0:03:01.4]} 3... cxd4 {[%clk 0:03:00.2]} 4.
Nxd4 {[%clk 0:03:00.7]} 4... Nf6 {[%clk 0:02:59.9]} 5. Nc3 {[%clk 0:03:00.7]}
5... a6 {[%clk 0:03:00.3]} 6. Be3 {[%clk 0:03:00.6]} 6... e5 {[%clk 0:03:00.5]}
7. Nb3 {[%clk 0:03:01.2]} 7... Be6 {[%clk 0:03:01]} 8. f3 {[%clk 0:03:01.6]}
8... h5 {[%clk 0:03:00.2]} 9. Qd2 {[%clk 0:03:01.6]} 9... Nbd7 {[%clk
0:02:57.2]} 10. O-O-O {[%clk 0:03:01.5]} 10... Rc8 {[%clk 0:02:50.5]} 11. Nd5
{[%clk 0:03:02]} 11... Bxd5 {[%clk 0:02:50.6]} 12. exd5 {[%clk 0:03:02.9]} 12...
Nb6 {[%clk 0:02:50.7]} 13. Qa5 {[%clk 0:02:45.9]} 13... Nc4 {[%clk 0:02:21.7]}
14. Qxd8+ {[%clk 0:02:43.5]} 14... Kxd8 {[%clk 0:02:21.6]} 15. Bxc4 {[%clk
0:02:42.7]} 15... Rxc4 {[%clk 0:02:22.5]} 16. Na5 {[%clk 0:02:42.3]} 16... Rb4
{[%clk 0:02:17.1]} 17. a3 {[%clk 0:02:23.1]} 17... Ra4 {[%clk 0:02:00.5]} 18.
Nxb7+ {[%clk 0:01:48.4]} 18... Kc7 {[%clk 0:01:58.5]} 19. b3 {[%clk 0:01:49]}
19... Rh4 {[%clk 0:01:27.5]} 20. Na5 {[%clk 0:01:32.7]} 20... g6 {[%clk
0:01:25.5]} 21. Bf2 {[%clk 0:01:25.6]} 21... Rf4 {[%clk 0:01:22.5]} 22. c3
{[%clk 0:01:06.2]} 22... Rf5 {[%clk 0:01:20.9]} 23. Nc4 {[%clk 0:00:57.1]} 23...
e4 {[%clk 0:01:16.3]} 24. Bb6+ {[%clk 0:00:56.4]} 24... Kb7 {[%clk 0:01:11]} 25.
fxe4 {[%clk 0:00:54.2]} 25... Nxe4 {[%clk 0:01:10.9]} 26. Rdf1 {[%clk
0:00:46.3]} 26... Nxc3 {[%clk 0:01:02.3]} 27. Rxf5 {[%clk 0:00:42.3]} 27... gxf5
{[%clk 0:01:02.3]} 28. Rf1 {[%clk 0:00:37.4]} 28... Nxd5 {[%clk 0:00:56.7]} 29.
Bd4 {[%clk 0:00:33.2]} 29... Bh6+ {[%clk 0:00:56.3]} 30. Kb1 {[%clk 0:00:28.8]}
30... Rg8 {[%clk 0:00:42.8]} 31. Rxf5 {[%clk 0:00:28]} 31... Nf4 {[%clk
0:00:38.2]} 32. Nxd6+ {[%clk 0:00:25.6]} 32... Kc6 {[%clk 0:00:30.4]} 33. Nxf7
{[%clk 0:00:26.5]} 33... Ne2 {[%clk 0:00:07.8]} 34. Nxh6 {[%clk 0:00:23.4]}
34... Rxg2 {[%clk 0:00:08.4]} 35. Bb2 {[%clk 0:00:19.1]} 35... Rxh2 {[%clk
0:00:08]} 36. Rf6+ {[%clk 0:00:16.8]} 36... Kb5 {[%clk 0:00:07.1]} 37. Nf5
{[%clk 0:00:16.7]} 37... h4 {[%clk 0:00:05.5]} 38. a4+ {[%clk 0:00:12.1]} 38...
Kb4 {[%clk 0:00:03.4]} 39. Rb6+ {[%clk 0:00:12.3]} 39... Kc5 {[%clk 0:00:03.9]}
40. Rxa6 {[%clk 0:00:10.9]} 40... h3 {[%clk 0:00:04.5]} 41. Rh6 {[%clk
0:00:10.7]} 1-0

[Event "*** Titled Tuesday Blitz"]
[Site "Chess.com"]
[Date "2021.03.02"]
[Round "11"]
[White "jordanasoul"]
[Black "akanga001"]
[Result "1-0"]
[WhiteElo "2171"]
[BlackElo "1965"]
[TimeControl "180+1"]
[EndTime "12:09:37 PST"]
[Termination "jordanasoul won on time"]

1. e4 {[%clk 0:03:00.9]} 1... c6 {[%clk 0:02:57.7]} 2. d4 {[%clk 0:02:59.2]}
2... d5 {[%clk 0:02:58.5]} 3. Nd2 {[%clk 0:02:54.5]} 3... dxe4 {[%clk 0:02:59]}
4. Nxe4 {[%clk 0:02:53.7]} 4... Nf6 {[%clk 0:02:56.6]} 5. Nxf6+ {[%clk
0:02:51.8]} 5... gxf6 {[%clk 0:02:49.5]} 6. Nf3 {[%clk 0:02:50.2]} 6... Bg4
{[%clk 0:02:48]} 7. Be2 {[%clk 0:02:49.5]} 7... Qd5 {[%clk 0:02:46.1]} 8. c4
{[%clk 0:02:45]} 8... Qe4 {[%clk 0:02:43.5]} 9. O-O {[%clk 0:02:39.7]} 9... e6
{[%clk 0:02:37.3]} 10. Re1 {[%clk 0:02:38.6]} 10... Qg6 {[%clk 0:02:15.1]} 11.
Kh1 {[%clk 0:02:34.6]} 11... Qh5 {[%clk 0:02:11.3]} 12. d5 {[%clk 0:02:27.9]}
12... cxd5 {[%clk 0:02:09.4]} 13. cxd5 {[%clk 0:02:27.4]} 13... Qxd5 {[%clk
0:02:02.5]} 14. Qxd5 {[%clk 0:02:25.8]} 14... exd5 {[%clk 0:02:01.8]} 15. Bb5+
{[%clk 0:02:24.9]} 15... Kd8 {[%clk 0:01:59.3]} 16. Re8+ {[%clk 0:02:24.1]}
16... Kc7 {[%clk 0:01:58.4]} 17. Bf4+ {[%clk 0:02:23.7]} 17... Kb6 {[%clk
0:01:55.6]} 18. a4 {[%clk 0:02:22.1]} 18... a6 {[%clk 0:01:47]} 19. Bd3 {[%clk
0:02:18.8]} 19... Bd6 {[%clk 0:01:33.2]} 20. Rxh8 {[%clk 0:02:15.9]} 20... Bxf4
{[%clk 0:01:29.9]} 21. Nd4 {[%clk 0:02:12.4]} 21... Ka7 {[%clk 0:01:19.7]} 22.
Nb5+ {[%clk 0:02:02.7]} 22... Kb6 {[%clk 0:01:15.2]} 23. a5+ {[%clk 0:02:01.9]}
23... Kc6 {[%clk 0:01:13]} 24. Nd4+ {[%clk 0:01:55.4]} 24... Kc5 {[%clk
0:01:10.6]} 25. Nb3+ {[%clk 0:01:52.1]} 25... Kb4 {[%clk 0:01:09]} 26. Ra3
{[%clk 0:01:49.5]} 26... Be5 {[%clk 0:01:00.9]} 27. Nc1 {[%clk 0:01:35.8]} 27...
Bd1 {[%clk 0:00:56.1]} 28. Na2+ {[%clk 0:01:27.3]} 28... Kc5 {[%clk 0:00:51.1]}
29. b4+ {[%clk 0:01:22.3]} 29... Kd4 {[%clk 0:00:49.1]} 30. Bxh7 {[%clk
0:01:20.8]} 30... f5 {[%clk 0:00:43.4]} 31. Bxf5 {[%clk 0:01:18]} 31... Bxh8
{[%clk 0:00:40.6]} 32. g4 {[%clk 0:01:02.3]} 32... Bf3+ {[%clk 0:00:36.2]} 33.
Rxf3 {[%clk 0:01:00.5]} 33... Ke5 {[%clk 0:00:35]} 34. h4 {[%clk 0:00:58.7]}
34... Nc6 {[%clk 0:00:34.1]} 35. h5 {[%clk 0:00:53.8]} 35... Nd4 {[%clk
0:00:33]} 36. Re3+ {[%clk 0:00:52.5]} 36... Kf4 {[%clk 0:00:32.1]} 37. Bd7
{[%clk 0:00:46.3]} 37... Rd8 {[%clk 0:00:30]} 38. Re7 {[%clk 0:00:43.4]} 38...
Bf6 {[%clk 0:00:28.5]} 39. Rxf7 {[%clk 0:00:42.8]} 39... Kg5 {[%clk 0:00:23.8]}
40. f4+ {[%clk 0:00:41.4]} 40... Kxf4 {[%clk 0:00:19.3]} 41. Rxf6+ {[%clk
0:00:41.7]} 41... Ke5 {[%clk 0:00:19]} 42. Rf7 {[%clk 0:00:40.2]} 42... Nc2
{[%clk 0:00:08.8]} 43. Bf5 {[%clk 0:00:39.1]} 43... Nxb4 {[%clk 0:00:07.6]} 44.
Nxb4 {[%clk 0:00:38]} 44... d4 {[%clk 0:00:07.1]} 45. h6 {[%clk 0:00:36.9]}
45... d3 {[%clk 0:00:03]} 46. Nxd3+ {[%clk 0:00:36.8]} 1-0

[Event "*** Titled Tuesday Blitz"]
[Site "Chess.com"]
[Date "2021.03.02"]
[Round "11"]
[White "WiktoriaPOL"]
[Black "dodorox"]
[Result "1-0"]
[WhiteElo "2038"]
[BlackElo "2124"]
[TimeControl "180+1"]
[EndTime "12:09:39 PST"]
[Termination "WiktoriaPOL won on time"]

1. e4 {[%clk 0:03:00.9]} 1... e6 {[%clk 0:02:59.9]} 2. d4 {[%clk 0:02:59.8]}
2... d5 {[%clk 0:03:00.1]} 3. e5 {[%clk 0:02:59.8]} 3... c5 {[%clk 0:02:59.9]}
4. c3 {[%clk 0:02:59.6]} 4... Nc6 {[%clk 0:02:59.3]} 5. Nf3 {[%clk 0:02:59.3]}
5... Qb6 {[%clk 0:02:59]} 6. Bd3 {[%clk 0:02:58.7]} 6... cxd4 {[%clk 0:02:58.5]}
7. cxd4 {[%clk 0:02:58.4]} 7... Bd7 {[%clk 0:02:59.1]} 8. O-O {[%clk 0:02:57.3]}
8... Nxd4 {[%clk 0:02:58.3]} 9. Nbd2 {[%clk 0:02:57.2]} 9... Ne7 {[%clk
0:02:27.4]} 10. Nxd4 {[%clk 0:02:56.1]} 10... Qxd4 {[%clk 0:02:27.1]} 11. Nf3
{[%clk 0:02:56.7]} 11... Qg4 {[%clk 0:02:18.4]} 12. h3 {[%clk 0:02:53.3]} 12...
Qh5 {[%clk 0:02:13.1]} 13. Kh2 {[%clk 0:02:43]} 13... f5 {[%clk 0:01:57.2]} 14.
exf6 {[%clk 0:02:39.5]} 14... gxf6 {[%clk 0:01:57.5]} 15. g4 {[%clk 0:02:36.6]}
15... Qf7 {[%clk 0:01:53.3]} 16. g5 {[%clk 0:02:35.9]} 16... Bg7 {[%clk
0:01:43.4]} 17. Qb3 {[%clk 0:02:06.2]} 17... O-O {[%clk 0:01:14.9]} 18. Qc2
{[%clk 0:01:57.3]} 18... f5 {[%clk 0:00:55.8]} 19. Bf4 {[%clk 0:01:22.6]} 19...
Ng6 {[%clk 0:00:55.2]} 20. Bd6 {[%clk 0:01:20.4]} 20... Rfc8 {[%clk 0:00:52.9]}
21. Qb3 {[%clk 0:01:18.2]} 21... e5 {[%clk 0:00:48]} 22. Bb5 {[%clk 0:01:09.5]}
22... Bxb5 {[%clk 0:00:35.6]} 23. Qxb5 {[%clk 0:01:09.3]} 23... Rc6 {[%clk
0:00:29.7]} 24. Bb4 {[%clk 0:01:04.6]} 24... e4 {[%clk 0:00:25.4]} 25. Nd2
{[%clk 0:00:59.1]} 25... Be5+ {[%clk 0:00:17.5]} 26. Kg1 {[%clk 0:00:56.2]}
26... Nf4 {[%clk 0:00:17.6]} 27. f3 {[%clk 0:00:23.2]} 27... Nxh3+ {[%clk
0:00:16.3]} 28. Kg2 {[%clk 0:00:23.2]} 28... Nf4+ {[%clk 0:00:15.7]} 29. Kf2
{[%clk 0:00:21.6]} 29... Bd4+ {[%clk 0:00:13.5]} 30. Ke1 {[%clk 0:00:18.8]}
30... e3 {[%clk 0:00:12.2]} 31. Nb3 {[%clk 0:00:17]} 31... Bb6 {[%clk
0:00:09.7]} 32. Nc1 {[%clk 0:00:09]} 32... Rac8 {[%clk 0:00:08.9]} 33. Kd1
{[%clk 0:00:07.2]} 33... e2+ {[%clk 0:00:07.6]} 34. Nxe2 {[%clk 0:00:06.5]}
34... Nxe2 {[%clk 0:00:06.8]} 35. Qxe2 {[%clk 0:00:06.5]} 35... Re8 {[%clk
0:00:06.7]} 36. Qd3 {[%clk 0:00:05]} 36... Re3 {[%clk 0:00:04.5]} 37. Qd2 {[%clk
0:00:03.9]} 37... Rce6 {[%clk 0:00:02.4]} 38. Rc1 {[%clk 0:00:03.3]} 38... Re8
{[%clk 0:00:01.3]} 39. Re1 {[%clk 0:00:02.9]} 1-0

[Event "*** Titled Tuesday Blitz"]
[Site "Chess.com"]
[Date "2021.03.02"]
[Round "11"]
[White "Ajedrez_con_German"]
[Black "zimmm36"]
[Result "1-0"]
[WhiteElo "2575"]
[BlackElo "2360"]
[TimeControl "180+1"]
[EndTime "12:09:43 PST"]
[Termination "Ajedrez_con_German won by checkmate"]

1. b3 {[%clk 0:03:00.9]} 1... Nf6 {[%clk 0:02:58.6]} 2. Bb2 {[%clk 0:03:00.8]}
2... g6 {[%clk 0:02:59.5]} 3. e3 {[%clk 0:02:54.5]} 3... Bg7 {[%clk 0:02:58.1]}
4. Nf3 {[%clk 0:02:54.2]} 4... O-O {[%clk 0:02:58.2]} 5. Be2 {[%clk 0:02:54.5]}
5... d6 {[%clk 0:02:56.3]} 6. d4 {[%clk 0:02:54.4]} 6... Nbd7 {[%clk 0:02:53.4]}
7. O-O {[%clk 0:02:52.9]} 7... e5 {[%clk 0:02:53.1]} 8. dxe5 {[%clk 0:02:52.5]}
8... Ng4 {[%clk 0:02:51.9]} 9. c4 {[%clk 0:02:52.6]} 9... Ngxe5 {[%clk
0:02:50.6]} 10. Nxe5 {[%clk 0:02:47.3]} 10... Nxe5 {[%clk 0:02:49.7]} 11. Nc3
{[%clk 0:02:47.4]} 11... Be6 {[%clk 0:02:48.9]} 12. Rc1 {[%clk 0:02:44.9]} 12...
a5 {[%clk 0:02:41.3]} 13. Qd2 {[%clk 0:02:44.2]} 13... Re8 {[%clk 0:02:34.2]}
14. Rfd1 {[%clk 0:02:42.4]} 14... Qh4 {[%clk 0:02:26.7]} 15. Nd5 {[%clk
0:02:27.2]} 15... Rac8 {[%clk 0:02:06.9]} 16. Nf4 {[%clk 0:01:47.6]} 16... Bd7
{[%clk 0:01:51.2]} 17. Nd5 {[%clk 0:01:41.8]} 17... a4 {[%clk 0:01:39.9]} 18. b4
{[%clk 0:01:39]} 18... Bg4 {[%clk 0:01:25.7]} 19. Bxg4 {[%clk 0:01:24.2]} 19...
Nxg4 {[%clk 0:01:24.1]} 20. h3 {[%clk 0:01:17.7]} 20... Ne5 {[%clk 0:01:20.4]}
21. Qe2 {[%clk 0:00:56.4]} 21... f5 {[%clk 0:00:58.9]} 22. f4 {[%clk 0:00:48.3]}
22... Nd7 {[%clk 0:00:54.3]} 23. Bxg7 {[%clk 0:00:47.9]} 23... Kxg7 {[%clk
0:00:55.2]} 24. Qb2+ {[%clk 0:00:38.7]} 24... Nf6 {[%clk 0:00:54.4]} 25. Kh2
{[%clk 0:00:30.1]} 25... Kf7 {[%clk 0:00:53.2]} 26. g3 {[%clk 0:00:19]} 26...
Ng4+ {[%clk 0:00:35.4]} 27. Kg2 {[%clk 0:00:19.2]} 27... Qe7 {[%clk 0:00:17.6]}
28. Nxe7 {[%clk 0:00:17.2]} 28... Nxe3+ {[%clk 0:00:15.3]} 29. Kf3 {[%clk
0:00:17]} 29... Nxd1 {[%clk 0:00:16.2]} 30. Rxd1 {[%clk 0:00:16.7]} 30... Rxe7
{[%clk 0:00:17.1]} 31. c5 {[%clk 0:00:12]} 31... Rce8 {[%clk 0:00:17]} 32. Rd2
{[%clk 0:00:11.9]} 32... d5 {[%clk 0:00:15.2]} 33. b5 {[%clk 0:00:10.2]} 33...
c6 {[%clk 0:00:15.2]} 34. bxc6 {[%clk 0:00:10.7]} 34... bxc6 {[%clk 0:00:16.1]}
35. Kf2 {[%clk 0:00:11]} 35... Re3 {[%clk 0:00:14.1]} 36. Qb7+ {[%clk
0:00:10.2]} 36... Kg8 {[%clk 0:00:13.4]} 37. Qxc6 {[%clk 0:00:10.5]} 37... d4
{[%clk 0:00:13.9]} 38. Qd5+ {[%clk 0:00:10.5]} 38... Kg7 {[%clk 0:00:13.3]} 39.
Qxd4+ {[%clk 0:00:10.9]} 39... Kh6 {[%clk 0:00:13.7]} 40. Qxe3 {[%clk
0:00:11.1]} 40... Rxe3 {[%clk 0:00:14.6]} 41. Kxe3 {[%clk 0:00:11.7]} 41... a3
{[%clk 0:00:15.5]} 42. c6 {[%clk 0:00:11.7]} 42... Kh5 {[%clk 0:00:16.4]} 43. c7
{[%clk 0:00:11.6]} 43... h6 {[%clk 0:00:17.3]} 44. g4+ {[%clk 0:00:08.8]} 44...
Kh4 {[%clk 0:00:17.4]} 45. gxf5 {[%clk 0:00:08.9]} 45... gxf5 {[%clk 0:00:18.3]}
46. c8=Q {[%clk 0:00:08.5]} 46... h5 {[%clk 0:00:19.2]} 47. Qd8+ {[%clk
0:00:08.4]} 47... Kg3 {[%clk 0:00:19.3]} 48. Rg2+ {[%clk 0:00:08.8]} 48... Kxg2
{[%clk 0:00:19.3]} 49. Qg5+ {[%clk 0:00:08.8]} 49... Kf1 {[%clk 0:00:20.2]} 50.
Qxf5 {[%clk 0:00:08.9]} 50... h4 {[%clk 0:00:21.1]} 51. Qh5 {[%clk 0:00:09]}
51... Kg1 {[%clk 0:00:22]} 52. Qxh4 {[%clk 0:00:09.8]} 52... Kh2 {[%clk
0:00:22.9]} 53. Qg4 {[%clk 0:00:09.7]} 53... Kh1 {[%clk 0:00:23.8]} 54. h4
{[%clk 0:00:10.3]} 54... Kh2 {[%clk 0:00:24.2]} 55. h5 {[%clk 0:00:11.2]} 55...
Kh1 {[%clk 0:00:25.1]} 56. h6 {[%clk 0:00:12.1]} 56... Kh2 {[%clk 0:00:26]} 57.
h7 {[%clk 0:00:13]} 57... Kh1 {[%clk 0:00:26.9]} 58. h8=Q# {[%clk 0:00:13.9]}
1-0

[Event "*** Titled Tuesday Blitz"]
[Site "Chess.com"]
[Date "2021.03.02"]
[Round "11"]
[White "FLamps8"]
[Black "blitis"]
[Result "1-0"]
[WhiteElo "2672"]
[BlackElo "2551"]
[TimeControl "180+1"]
[EndTime "12:09:47 PST"]
[Termination "FLamps8 won by resignation"]

1. d4 {[%clk 0:03:00.9]} 1... g6 {[%clk 0:02:59.6]} 2. Nc3 {[%clk 0:03:01.2]}
2... Bg7 {[%clk 0:02:58.5]} 3. e4 {[%clk 0:03:01.7]} 3... c6 {[%clk 0:02:57.9]}
4. Nf3 {[%clk 0:03:00.8]} 4... d5 {[%clk 0:02:57.1]} 5. h3 {[%clk 0:03:01.3]}
5... dxe4 {[%clk 0:02:56.7]} 6. Nxe4 {[%clk 0:03:02.2]} 6... Nd7 {[%clk
0:02:57.3]} 7. Bc4 {[%clk 0:02:53.4]} 7... Ngf6 {[%clk 0:02:53.9]} 8. Nxf6+
{[%clk 0:02:53]} 8... Nxf6 {[%clk 0:02:53.9]} 9. O-O {[%clk 0:02:53.9]} 9... O-O
{[%clk 0:02:54]} 10. c3 {[%clk 0:02:54]} 10... Nd5 {[%clk 0:02:43.9]} 11. Re1
{[%clk 0:02:49.4]} 11... Bf5 {[%clk 0:02:41.1]} 12. Bg5 {[%clk 0:02:47.9]} 12...
Re8 {[%clk 0:02:39.8]} 13. Qd2 {[%clk 0:02:47.6]} 13... Qd6 {[%clk 0:02:36.1]}
14. Bh4 {[%clk 0:02:42.3]} 14... Rad8 {[%clk 0:02:18.6]} 15. Bg3 {[%clk
0:02:39.8]} 15... Qd7 {[%clk 0:02:17.3]} 16. Ne5 {[%clk 0:02:39.1]} 16... Qc8
{[%clk 0:02:16.2]} 17. Qe2 {[%clk 0:02:35.4]} 17... Be6 {[%clk 0:02:02.8]} 18.
Bb3 {[%clk 0:02:28.2]} 18... a6 {[%clk 0:02:01.2]} 19. Nd3 {[%clk 0:02:27]}
19... b6 {[%clk 0:01:51.8]} 20. Nf4 {[%clk 0:02:10.1]} 20... Nxf4 {[%clk
0:01:48.3]} 21. Bxf4 {[%clk 0:02:11]} 21... Bxb3 {[%clk 0:01:45.1]} 22. axb3
{[%clk 0:02:11.9]} 22... a5 {[%clk 0:01:44.1]} 23. Be5 {[%clk 0:02:12.3]} 23...
Bxe5 {[%clk 0:01:40.6]} 24. Qxe5 {[%clk 0:02:13.2]} 24... Qf5 {[%clk 0:01:32.1]}
25. Qxf5 {[%clk 0:02:02.7]} 25... gxf5 {[%clk 0:01:33]} 26. Re5 {[%clk
0:02:02.4]} 26... e6 {[%clk 0:01:32]} 27. Ra4 {[%clk 0:02:01]} 27... Rd5 {[%clk
0:01:24.9]} 28. Rxd5 {[%clk 0:01:59.3]} 28... cxd5 {[%clk 0:01:16.5]} 29. b4
{[%clk 0:01:58.4]} 29... axb4 {[%clk 0:01:17.4]} 30. Rxb4 {[%clk 0:01:58.2]}
30... Rb8 {[%clk 0:01:17.4]} 31. g3 {[%clk 0:01:55.2]} 31... Kf8 {[%clk
0:01:17.5]} 32. Kg2 {[%clk 0:01:55.6]} 32... Ke7 {[%clk 0:01:17.8]} 33. Kf3
{[%clk 0:01:56.1]} 33... Kd6 {[%clk 0:01:18.1]} 34. Ra4 {[%clk 0:01:55.4]} 34...
Rb7 {[%clk 0:01:14.9]} 35. Kf4 {[%clk 0:01:54.6]} 35... f6 {[%clk 0:01:09.3]}
36. Ra8 {[%clk 0:01:47]} 36... b5 {[%clk 0:01:04.9]} 37. Rd8+ {[%clk 0:01:25.3]}
37... Ke7 {[%clk 0:01:01.8]} 38. Rh8 {[%clk 0:01:25.6]} 38... Kd6 {[%clk
0:01:01.1]} 39. g4 {[%clk 0:01:26]} 39... fxg4 {[%clk 0:00:59.8]} 40. Kxg4
{[%clk 0:01:25.1]} 40... b4 {[%clk 0:01:00.1]} 41. f4 {[%clk 0:01:19.9]} 41...
bxc3 {[%clk 0:00:57.1]} 42. bxc3 {[%clk 0:01:20.8]} 42... Rc7 {[%clk 0:00:47.3]}
43. h4 {[%clk 0:01:09.9]} 43... Rxc3 {[%clk 0:00:37.3]} 44. Rxh7 {[%clk
0:01:09.2]} 44... Rd3 {[%clk 0:00:37.5]} 45. h5 {[%clk 0:01:08.2]} 45... Rxd4
{[%clk 0:00:37.7]} 46. h6 {[%clk 0:01:03.6]} 46... e5 {[%clk 0:00:37.6]} 47. Rh8
{[%clk 0:00:41.4]} 47... Rxf4+ {[%clk 0:00:37.2]} 48. Kg3 {[%clk 0:00:41]} 48...
Rf5 {[%clk 0:00:18]} 49. h7 {[%clk 0:00:39.5]} 49... Rh5 {[%clk 0:00:16.3]} 50.
Rd8+ {[%clk 0:00:38.5]} 50... Kc5 {[%clk 0:00:16.7]} 51. h8=Q {[%clk 0:00:39.4]}
51... Rxh8 {[%clk 0:00:16.8]} 52. Rxh8 {[%clk 0:00:40]} 52... f5 {[%clk
0:00:16.1]} 53. Rh5 {[%clk 0:00:36.1]} 53... f4+ {[%clk 0:00:10.5]} 54. Kf3
{[%clk 0:00:36.1]} 54... Kd4 {[%clk 0:00:11]} 55. Rg5 {[%clk 0:00:36.4]} 55...
e4+ {[%clk 0:00:09.4]} 56. Kxf4 {[%clk 0:00:36.6]} 56... Kc4 {[%clk 0:00:08.1]}
57. Ke3 {[%clk 0:00:35.8]} 57... d4+ {[%clk 0:00:06.3]} 58. Kxe4 {[%clk
0:00:35.5]} 58... d3 {[%clk 0:00:07.2]} 59. Rd5 {[%clk 0:00:35.4]} 1-0